[Event "Titled Tuesday Blitz July 25 Early 2023"]
[White "marik_spb"]
[Black "Anton Guijarro, David"]
[BlackFideId "2285525"]
[WhiteElo "2486"]
[BlackElo "2952"]
[Result "0-1"]
[Round "1"]
[TimeControl "180+2"]
[Date "2023.07.25"]
[WhiteClock "0:00:03"]
[BlackClock "0:00:37"]
[Board "23"]

1. e4 {[%clk 0:02:54]}  c6 {[%clk 0:03:00]} 2. c4 {[%clk 0:02:53]}  d5 {[%clk 0:02:57]} 3. cxd5 {[%clk 0:02:54]}  cxd5 {[%clk 0:02:58]} 4. exd5 {[%clk 0:02:55]}  Nf6 {[%clk 0:02:59]} 5. Qa4+ {[%clk 0:02:24]}  Nbd7 {[%clk 0:02:58]} 6. Nc3 {[%clk 0:02:20]}  g6 {[%clk 0:02:57]} 7. Nf3 {[%clk 0:02:21]}  Bg7 {[%clk 0:02:57]} 8. Bc4 {[%clk 0:02:18]}  O-O {[%clk 0:02:56]} 9. d3 {[%clk 0:02:19]}  a6 {[%clk 0:02:55]} 10. Qa3 {[%clk 0:02:19]}  Nb6 {[%clk 0:02:52]} 11. Qb3 {[%clk 0:02:19]}  Bg4 {[%clk 0:02:51]} 12. Ne5 {[%clk 0:02:03]}  Bf5 {[%clk 0:02:46]} 13. Be3 {[%clk 0:01:54]}  Nxc4 {[%clk 0:02:33]} 14. dxc4 {[%clk 0:01:54]}  Ne4 {[%clk 0:02:19]} 15. Nxe4 {[%clk 0:01:47]}  Bxe4 {[%clk 0:02:19]} 16. f3 {[%clk 0:01:28]}  Bxd5 {[%clk 0:02:15]} 17. cxd5 {[%clk 0:01:29]}  Bxe5 {[%clk 0:02:13]} 18. O-O {[%clk 0:01:29]}  Qd7 {[%clk 0:02:05]} 19. Rac1 {[%clk 0:01:28]}  Rfc8 {[%clk 0:02:02]} 20. Rxc8+ {[%clk 0:01:21]}  Rxc8 {[%clk 0:02:02]} 21. Rc1 {[%clk 0:01:22]}  Rxc1+ {[%clk 0:02:02]} 22. Bxc1 {[%clk 0:01:23]}  Qc7 {[%clk 0:02:00]} 23. Be3 {[%clk 0:01:22]}  Bxh2+ {[%clk 0:02:00]} 24. Kf1 {[%clk 0:01:16]}  Be5 {[%clk 0:02:00]} 25. Ke2 {[%clk 0:01:15]}  h5 {[%clk 0:01:59]} 26. Kd3 {[%clk 0:01:08]}  Qd7 {[%clk 0:01:58]} 27. Bd4 {[%clk 0:00:52]}  Bxd4 {[%clk 0:01:27]} 28. Kxd4 {[%clk 0:00:53]}  e6 {[%clk 0:01:27]} 29. Ke5 {[%clk 0:00:30]}  exd5 {[%clk 0:01:27]} 30. Qxd5 {[%clk 0:00:29]}  Qe7+ {[%clk 0:01:26]} 31. Kd4 {[%clk 0:00:16]}  Qb4+ {[%clk 0:01:22]} 32. Ke3 {[%clk 0:00:15]}  Qxb2 {[%clk 0:01:21]} 33. g4 {[%clk 0:00:16]}  Qb6+ {[%clk 0:01:13]} 34. Kf4 {[%clk 0:00:13]}  Qc7+ {[%clk 0:00:53]} 35. Kg5 {[%clk 0:00:12]}  Qe7+ {[%clk 0:00:46]} 36. Kf4 {[%clk 0:00:05]}  h4 {[%clk 0:00:44]} 37. g5 {[%clk 0:00:05]}  Qc7+ {[%clk 0:00:44]} 38. Ke4 {[%clk 0:00:03]}  Qc6 {[%clk 0:00:35]} 39. Qxc6 {[%clk 0:00:02]}  bxc6 {[%clk 0:00:36]} 40. Kf4 {[%clk 0:00:02]}  c5 {[%clk 0:00:37]} 41. Kg4 {[%clk 0:00:03]}  c4 {[%clk 0:00:37]} 0-1


[Site "https://www.chess.com"]

[Event "Titled Tuesday Blitz July 25 Early 2023"]
[White "Kovalev, Vladislav"]
[Black "Mmukka"]
[WhiteFideId "13504398"]
[WhiteElo "2948"]
[BlackElo "2485"]
[Result "1-0"]
[Round "1"]
[TimeControl "180+2"]
[Date "2023.07.25"]
[WhiteClock "0:00:17"]
[BlackClock "0:00:23"]
[Board "24"]

1. e4 {[%clk 0:03:00]}  c5 {[%clk 0:02:59]} 2. Nf3 {[%clk 0:03:01]}  e6 {[%clk 0:02:59]} 3. c3 {[%clk 0:03:01]}  d5 {[%clk 0:02:59]} 4. exd5 {[%clk 0:03:01]}  Qxd5 {[%clk 0:03:00]} 5. d4 {[%clk 0:03:02]}  Nf6 {[%clk 0:03:00]} 6. Na3 {[%clk 0:03:02]}  Nc6 {[%clk 0:02:58]} 7. Nb5 {[%clk 0:03:00]}  Qd8 {[%clk 0:02:45]} 8. dxc5 {[%clk 0:02:58]}  Bxc5 {[%clk 0:02:43]} 9. Qxd8+ {[%clk 0:02:57]}  Kxd8 {[%clk 0:02:44]} 10. Bf4 {[%clk 0:02:56]}  Ne4 {[%clk 0:02:44]} 11. Rd1+ {[%clk 0:02:18]}  Ke7 {[%clk 0:02:40]} 12. Nbd4 {[%clk 0:02:13]}  Nxd4 {[%clk 0:02:22]} 13. Nxd4 {[%clk 0:02:14]}  Rd8 {[%clk 0:02:22]} 14. Bd3 {[%clk 0:02:09]}  Nf6 {[%clk 0:02:17]} 15. Nb3 {[%clk 0:02:03]}  Bd6 {[%clk 0:02:13]} 16. Bxd6+ {[%clk 0:01:46]}  Rxd6 {[%clk 0:02:12]} 17. Be2 {[%clk 0:01:42]}  Rxd1+ {[%clk 0:02:10]} 18. Bxd1 {[%clk 0:01:42]}  b6 {[%clk 0:01:39]} 19. Bf3 {[%clk 0:01:42]}  Rb8 {[%clk 0:01:39]} 20. Ke2 {[%clk 0:01:41]}  Bb7 {[%clk 0:01:32]} 21. Nd4 {[%clk 0:01:33]}  Bxf3+ {[%clk 0:01:30]} 22. Kxf3 {[%clk 0:01:34]}  Rc8 {[%clk 0:01:29]} 23. Rd1 {[%clk 0:01:33]}  g6 {[%clk 0:01:21]} 24. Ke2 {[%clk 0:01:21]}  Nd5 {[%clk 0:01:21]} 25. g3 {[%clk 0:01:20]}  h5 {[%clk 0:01:19]} 26. h4 {[%clk 0:01:19]}  Nf6 {[%clk 0:01:02]} 27. Rd3 {[%clk 0:01:17]}  Nd7 {[%clk 0:01:02]} 28. b3 {[%clk 0:00:58]}  e5 {[%clk 0:00:57]} 29. Nb5 {[%clk 0:00:45]}  a6 {[%clk 0:00:55]} 30. Nd6 {[%clk 0:00:45]}  Rc6 {[%clk 0:00:53]} 31. Ne4 {[%clk 0:00:45]}  f5 {[%clk 0:00:49]} 32. Ng5 {[%clk 0:00:45]}  e4 {[%clk 0:00:49]} 33. Re3 {[%clk 0:00:46]}  Kf6 {[%clk 0:00:45]} 34. f3 {[%clk 0:00:43]}  exf3+ {[%clk 0:00:44]} 35. Nxf3 {[%clk 0:00:44]}  Re6 {[%clk 0:00:43]} 36. c4 {[%clk 0:00:37]}  Nc5 {[%clk 0:00:41]} 37. Rxe6+ {[%clk 0:00:27]}  Kxe6 {[%clk 0:00:41]} 38. Ke3 {[%clk 0:00:28]}  Ne4 {[%clk 0:00:34]} 39. Kf4 {[%clk 0:00:28]}  Kf6 {[%clk 0:00:30]} 40. Ne5 {[%clk 0:00:20]}  Nxg3 {[%clk 0:00:24]} 41. Nd7+ {[%clk 0:00:20]}  Ke7 {[%clk 0:00:23]} 42. Nxb6 {[%clk 0:00:21]}  Ne2+ {[%clk 0:00:23]} 43. Kg5 {[%clk 0:00:21]}  f4 {[%clk 0:00:22]} 44. Nd5+ {[%clk 0:00:22]}  Kd6 {[%clk 0:00:20]} 45. Nxf4 {[%clk 0:00:23]}  Ng3 {[%clk 0:00:18]} 46. Kxg6 {[%clk 0:00:16]}  Ke5 {[%clk 0:00:19]} 47. Nxh5 {[%clk 0:00:16]}  Nf5 {[%clk 0:00:19]} 48. Kg5 {[%clk 0:00:16]}  Nd4 {[%clk 0:00:19]} 49. Ng3 {[%clk 0:00:12]}  Nf3+ {[%clk 0:00:19]} 50. Kg4 {[%clk 0:00:13]}  Nd4 {[%clk 0:00:17]} 51. h5 {[%clk 0:00:12]}  Ne6 {[%clk 0:00:17]} 52. h6 {[%clk 0:00:12]}  Kf6 {[%clk 0:00:17]} 53. Nh5+ {[%clk 0:00:13]}  Kg6 {[%clk 0:00:17]} 54. Nf4+ {[%clk 0:00:13]}  Nxf4 {[%clk 0:00:18]} 55. Kxf4 {[%clk 0:00:14]}  Kxh6 {[%clk 0:00:19]} 56. Ke5 {[%clk 0:00:14]}  Kg6 {[%clk 0:00:19]} 57. Kd6 {[%clk 0:00:15]}  Kf7 {[%clk 0:00:20]} 58. Kc6 {[%clk 0:00:15]}  Ke8 {[%clk 0:00:21]} 59. Kb6 {[%clk 0:00:16]}  Kd7 {[%clk 0:00:22]} 60. Kxa6 {[%clk 0:00:16]}  Kc7 {[%clk 0:00:23]} 61. Kb5 {[%clk 0:00:17]} 1-0


[Site "https://www.chess.com"]

[Event "Titled Tuesday Blitz July 25 Early 2023"]
[White "Svane, Frederik"]
[Black "Remolar Gallen, Jose"]
[WhiteFideId "12923044"]
[BlackFideId "2215187"]
[WhiteElo "2942"]
[BlackElo "2483"]
[Result "1-0"]
[Round "1"]
[TimeControl "180+2"]
[Date "2023.07.25"]
[WhiteClock "0:01:16"]
[BlackClock "0:00:12"]
[Board "28"]

1. c4 {[%clk 0:02:45]}  Nf6 {[%clk 0:02:57]} 2. Nc3 {[%clk 0:02:42]}  g6 {[%clk 0:02:57]} 3. g3 {[%clk 0:02:41]}  Bg7 {[%clk 0:02:57]} 4. Bg2 {[%clk 0:02:39]}  O-O {[%clk 0:02:57]} 5. d3 {[%clk 0:02:39]}  d6 {[%clk 0:02:49]} 6. Rb1 {[%clk 0:02:39]}  Nc6 {[%clk 0:02:38]} 7. Nf3 {[%clk 0:02:36]}  e5 {[%clk 0:02:36]} 8. O-O {[%clk 0:02:35]}  h6 {[%clk 0:02:37]} 9. b4 {[%clk 0:02:34]}  Be6 {[%clk 0:02:35]} 10. b5 {[%clk 0:02:25]}  Ne7 {[%clk 0:02:32]} 11. e4 {[%clk 0:02:24]}  Qd7 {[%clk 0:02:27]} 12. Re1 {[%clk 0:02:13]}  a6 {[%clk 0:02:25]} 13. a4 {[%clk 0:02:13]}  axb5 {[%clk 0:02:25]} 14. axb5 {[%clk 0:02:14]}  Bh3 {[%clk 0:02:21]} 15. Bh1 {[%clk 0:02:14]}  g5 {[%clk 0:02:20]} 16. d4 {[%clk 0:02:03]}  exd4 {[%clk 0:02:15]} 17. Nxd4 {[%clk 0:02:03]}  Rfe8 {[%clk 0:02:04]} 18. Bb2 {[%clk 0:02:03]}  Ng6 {[%clk 0:02:02]} 19. Nd5 {[%clk 0:02:01]}  Ne5 {[%clk 0:01:51]} 20. Qb3 {[%clk 0:01:57]}  Nxd5 {[%clk 0:00:57]} 21. cxd5 {[%clk 0:01:56]}  f5 {[%clk 0:00:54]} 22. Ne6 {[%clk 0:01:47]}  fxe4 {[%clk 0:00:50]} 23. Bxe4 {[%clk 0:01:47]}  Rf8 {[%clk 0:00:47]} 24. Re3 {[%clk 0:01:22]}  Rf7 {[%clk 0:00:29]} 25. Rbe1 {[%clk 0:01:22]}  Bg4 {[%clk 0:00:23]} 26. f4 {[%clk 0:01:18]}  gxf4 {[%clk 0:00:14]} 27. gxf4 {[%clk 0:01:19]}  Ng6 {[%clk 0:00:12]} 28. Bxg6 {[%clk 0:01:16]} 1-0


[Site "https://www.chess.com"]

[Event "Titled Tuesday Blitz July 25 Early 2023"]
[White "Papayan, Oleg"]
[Black "Megaranto, Susanto"]
[WhiteFideId "4193911"]
[BlackFideId "7101384"]
[WhiteElo "2479"]
[BlackElo "2931"]
[Result "0-1"]
[Round "1"]
[TimeControl "180+2"]
[Date "2023.07.25"]
[WhiteClock "0:00:04"]
[BlackClock "0:01:31"]
[Board "31"]

1. e4 {[%clk 0:02:58]}  c6 {[%clk 0:02:56]} 2. Nf3 {[%clk 0:02:58]}  d5 {[%clk 0:02:54]} 3. Nc3 {[%clk 0:02:59]}  a6 {[%clk 0:02:53]} 4. d4 {[%clk 0:02:58]}  Bg4 {[%clk 0:02:52]} 5. h3 {[%clk 0:02:47]}  Bh5 {[%clk 0:02:51]} 6. g4 {[%clk 0:02:45]}  Bg6 {[%clk 0:02:50]} 7. e5 {[%clk 0:02:34]}  e6 {[%clk 0:02:49]} 8. h4 {[%clk 0:02:32]}  h5 {[%clk 0:02:48]} 9. g5 {[%clk 0:02:28]}  c5 {[%clk 0:02:47]} 10. Be3 {[%clk 0:02:12]}  Ne7 {[%clk 0:02:41]} 11. Ne2 {[%clk 0:01:49]}  Be4 {[%clk 0:02:38]} 12. Ng3 {[%clk 0:01:47]}  cxd4 {[%clk 0:02:34]} 13. Bxd4 {[%clk 0:01:46]}  Nbc6 {[%clk 0:02:34]} 14. c3 {[%clk 0:01:41]}  Bxf3 {[%clk 0:02:28]} 15. Qxf3 {[%clk 0:01:40]}  Nxd4 {[%clk 0:02:29]} 16. cxd4 {[%clk 0:01:41]}  Nc6 {[%clk 0:02:16]} 17. O-O-O {[%clk 0:01:39]}  g6 {[%clk 0:02:16]} 18. Qb3 {[%clk 0:01:07]}  b5 {[%clk 0:02:06]} 19. Kb1 {[%clk 0:00:50]}  Qb6 {[%clk 0:02:04]} 20. Qe3 {[%clk 0:00:38]}  Rc8 {[%clk 0:02:01]} 21. Be2 {[%clk 0:00:38]}  Be7 {[%clk 0:01:57]} 22. f4 {[%clk 0:00:37]}  Qa7 {[%clk 0:01:53]} 23. Rd2 {[%clk 0:00:30]}  Bd8 {[%clk 0:01:49]} 24. Rc1 {[%clk 0:00:29]}  Bb6 {[%clk 0:01:48]} 25. Bd1 {[%clk 0:00:22]}  Kd7 {[%clk 0:01:45]} 26. Ne2 {[%clk 0:00:22]}  Ne7 {[%clk 0:01:44]} 27. Bb3 {[%clk 0:00:20]}  Rxc1+ {[%clk 0:01:42]} 28. Kxc1 {[%clk 0:00:21]}  Rc8+ {[%clk 0:01:41]} 29. Kd1 {[%clk 0:00:22]}  Nf5 {[%clk 0:01:42]} 30. Qf2 {[%clk 0:00:18]}  Qc7 {[%clk 0:01:39]} 31. Rc2 {[%clk 0:00:17]}  Qa7 {[%clk 0:01:38]} 32. Rxc8 {[%clk 0:00:18]}  Kxc8 {[%clk 0:01:38]} 33. Bc2 {[%clk 0:00:18]}  Bxd4 {[%clk 0:01:35]} 34. Nxd4 {[%clk 0:00:06]}  Qxd4+ {[%clk 0:01:36]} 35. Qxd4 {[%clk 0:00:07]}  Nxd4 {[%clk 0:01:37]} 36. Bd3 {[%clk 0:00:07]}  Kc7 {[%clk 0:01:32]} 37. a4 {[%clk 0:00:06]}  Kb6 {[%clk 0:01:31]} 38. axb5 {[%clk 0:00:06]}  axb5 {[%clk 0:01:32]} 39. Kd2 {[%clk 0:00:02]}  Nf3+ {[%clk 0:01:32]} 40. Kc3 {[%clk 0:00:02]}  Nxh4 {[%clk 0:01:32]} 41. Kb4 {[%clk 0:00:03]}  Ng2 {[%clk 0:01:33]} 42. Bxb5 {[%clk 0:00:04]}  h4 {[%clk 0:01:31]} 0-1


[Site "https://www.chess.com"]

[Event "Titled Tuesday Blitz July 25 Early 2023"]
[White "Aravindh, Chithambaram VR."]
[Black "Taboas Rodriguez, Daniel"]
[WhiteFideId "5072786"]
[BlackFideId "2208466"]
[WhiteElo "2923"]
[BlackElo "2479"]
[Result "1-0"]
[Round "1"]
[TimeControl "180+2"]
[Date "2023.07.25"]
[WhiteClock "0:00:10"]
[BlackClock "0:00:19"]
[Board "32"]

1. b3 {[%clk 0:03:00]}  d5 {[%clk 0:02:59]} 2. Bb2 {[%clk 0:03:01]}  Bg4 {[%clk 0:03:00]} 3. Nf3 {[%clk 0:03:01]}  Nc6 {[%clk 0:02:58]} 4. d4 {[%clk 0:03:00]}  Nf6 {[%clk 0:02:56]} 5. e3 {[%clk 0:03:00]}  e6 {[%clk 0:02:57]} 6. Nbd2 {[%clk 0:03:01]}  Bd6 {[%clk 0:02:56]} 7. Be2 {[%clk 0:03:00]}  O-O {[%clk 0:02:56]} 8. O-O {[%clk 0:03:00]}  a5 {[%clk 0:02:56]} 9. c4 {[%clk 0:03:00]}  a4 {[%clk 0:02:55]} 10. bxa4 {[%clk 0:03:01]}  Bb4 {[%clk 0:02:33]} 11. Nb3 {[%clk 0:02:33]}  Rxa4 {[%clk 0:02:26]} 12. cxd5 {[%clk 0:02:12]}  Nxd5 {[%clk 0:02:22]} 13. Qc2 {[%clk 0:02:07]}  Ra7 {[%clk 0:01:41]} 14. Rfc1 {[%clk 0:02:01]}  Bf5 {[%clk 0:01:39]} 15. Bd3 {[%clk 0:01:37]}  Bg6 {[%clk 0:01:33]} 16. Bxg6 {[%clk 0:01:32]}  hxg6 {[%clk 0:01:34]} 17. e4 {[%clk 0:01:33]}  Nf6 {[%clk 0:01:29]} 18. Rd1 {[%clk 0:01:09]}  Ba3 {[%clk 0:01:07]} 19. Bxa3 {[%clk 0:01:04]}  Rxa3 {[%clk 0:01:08]} 20. Nc5 {[%clk 0:00:59]}  Qa8 {[%clk 0:01:02]} 21. Ng5 {[%clk 0:00:32]}  Rd8 {[%clk 0:00:57]} 22. e5 {[%clk 0:00:30]}  Nd5 {[%clk 0:00:54]} 23. Ncxe6 {[%clk 0:00:27]}  Re8 {[%clk 0:00:26]} 24. Nc5 {[%clk 0:00:16]}  Ncb4 {[%clk 0:00:26]} 25. Qe4 {[%clk 0:00:16]}  Rxa2 {[%clk 0:00:23]} 26. Rxa2 {[%clk 0:00:13]}  Qxa2 {[%clk 0:00:24]} 27. e6 {[%clk 0:00:12]}  f5 {[%clk 0:00:23]} 28. Qh4 {[%clk 0:00:12]}  Nf6 {[%clk 0:00:23]} 29. Nd7 {[%clk 0:00:11]}  Qe2 {[%clk 0:00:21]} 30. Nxf6+ {[%clk 0:00:11]}  gxf6 {[%clk 0:00:19]} 31. Qh7+ {[%clk 0:00:10]} 1-0


[Site "https://www.chess.com"]

[Event "Titled Tuesday Blitz July 25 Early 2023"]
[White "Madaminov, Mukhiddin"]
[Black "Gnechko, Ruslan"]
[WhiteFideId "14210703"]
[BlackFideId "14135868"]
[WhiteElo "2921"]
[BlackElo "2476"]
[Result "1-0"]
[Round "1"]
[TimeControl "180+2"]
[Date "2023.07.25"]
[WhiteClock "0:00:23"]
[BlackClock "0:00:13"]
[Board "34"]

1. e4 {[%clk 0:03:00]}  e6 {[%clk 0:02:59]} 2. d4 {[%clk 0:03:00]}  d5 {[%clk 0:03:00]} 3. Nc3 {[%clk 0:03:01]}  dxe4 {[%clk 0:03:00]} 4. Nxe4 {[%clk 0:03:02]}  Nd7 {[%clk 0:03:00]} 5. Nf3 {[%clk 0:03:02]}  Ngf6 {[%clk 0:03:01]} 6. Nxf6+ {[%clk 0:03:03]}  Nxf6 {[%clk 0:03:02]} 7. c3 {[%clk 0:03:03]}  Be7 {[%clk 0:03:02]} 8. Bd3 {[%clk 0:03:00]}  O-O {[%clk 0:03:03]} 9. O-O {[%clk 0:03:01]}  b6 {[%clk 0:03:03]} 10. Qe2 {[%clk 0:02:53]}  Bb7 {[%clk 0:03:03]} 11. Bf4 {[%clk 0:02:50]}  c5 {[%clk 0:03:02]} 12. dxc5 {[%clk 0:02:50]}  Bxc5 {[%clk 0:03:01]} 13. Rad1 {[%clk 0:02:50]}  Qc8 {[%clk 0:02:54]} 14. Be5 {[%clk 0:02:42]}  Be7 {[%clk 0:02:49]} 15. Bd4 {[%clk 0:02:28]}  Rd8 {[%clk 0:02:47]} 16. h3 {[%clk 0:02:23]}  Qc7 {[%clk 0:02:45]} 17. Rfe1 {[%clk 0:02:19]}  Rac8 {[%clk 0:02:33]} 18. Ne5 {[%clk 0:02:17]}  Bc5 {[%clk 0:02:22]} 19. Bxc5 {[%clk 0:02:12]}  Qxc5 {[%clk 0:02:21]} 20. Bc2 {[%clk 0:01:31]}  Qc7 {[%clk 0:02:00]} 21. Bb3 {[%clk 0:01:26]}  Rxd1 {[%clk 0:01:58]} 22. Rxd1 {[%clk 0:01:26]}  Bd5 {[%clk 0:01:58]} 23. c4 {[%clk 0:01:23]}  Ba8 {[%clk 0:01:53]} 24. Qd2 {[%clk 0:00:52]}  h6 {[%clk 0:01:47]} 25. Qd4 {[%clk 0:00:51]}  Qb7 {[%clk 0:01:39]} 26. f3 {[%clk 0:00:49]}  Qc7 {[%clk 0:01:39]} 27. Bc2 {[%clk 0:00:49]}  Qc5 {[%clk 0:01:29]} 28. Qxc5 {[%clk 0:00:47]}  bxc5 {[%clk 0:01:29]} 29. Nd7 {[%clk 0:00:47]}  Bc6 {[%clk 0:01:22]} 30. Nxc5 {[%clk 0:00:44]}  g5 {[%clk 0:01:04]} 31. b4 {[%clk 0:00:44]}  a5 {[%clk 0:01:00]} 32. a3 {[%clk 0:00:44]}  axb4 {[%clk 0:01:00]} 33. axb4 {[%clk 0:00:45]}  Kg7 {[%clk 0:00:59]} 34. Kf2 {[%clk 0:00:45]}  Nh5 {[%clk 0:00:57]} 35. g3 {[%clk 0:00:45]}  Nf6 {[%clk 0:00:56]} 36. Ke3 {[%clk 0:00:46]}  h5 {[%clk 0:00:54]} 37. h4 {[%clk 0:00:45]}  g4 {[%clk 0:00:53]} 38. f4 {[%clk 0:00:46]}  Kf8 {[%clk 0:00:44]} 39. Ra1 {[%clk 0:00:45]}  Bf3 {[%clk 0:00:32]} 40. f5 {[%clk 0:00:38]}  exf5 {[%clk 0:00:31]} 41. Bxf5 {[%clk 0:00:37]}  Re8+ {[%clk 0:00:32]} 42. Kf4 {[%clk 0:00:37]}  Be2 {[%clk 0:00:23]} 43. Rc1 {[%clk 0:00:28]}  Rd8 {[%clk 0:00:17]} 44. b5 {[%clk 0:00:25]}  Rd4+ {[%clk 0:00:16]} 45. Ke5 {[%clk 0:00:25]}  Rxc4 {[%clk 0:00:16]} 46. Rxc4 {[%clk 0:00:25]}  Bxc4 {[%clk 0:00:17]} 47. Kxf6 {[%clk 0:00:25]}  Bxb5 {[%clk 0:00:17]} 48. Nd7+ {[%clk 0:00:23]}  Kg8 {[%clk 0:00:15]} 49. Ne5 {[%clk 0:00:23]}  Bc4 {[%clk 0:00:13]} 50. Nxc4 {[%clk 0:00:23]} 1-0


[Site "https://www.chess.com"]

[Event "Titled Tuesday Blitz July 25 Early 2023"]
[White "Spichkin, Alexander"]
[Black "Tari, Aryan"]
[WhiteFideId "4144074"]
[BlackFideId "1510045"]
[WhiteElo "2474"]
[BlackElo "2909"]
[Result "0-1"]
[Round "1"]
[TimeControl "180+2"]
[Date "2023.07.25"]
[WhiteClock "0:00:41"]
[BlackClock "0:00:17"]
[Board "35"]

1. f4 {[%clk 0:03:00]}  b6 {[%clk 0:02:56]} 2. Nf3 {[%clk 0:03:00]}  Bb7 {[%clk 0:02:57]} 3. d3 {[%clk 0:03:00]}  g6 {[%clk 0:02:48]} 4. e4 {[%clk 0:03:01]}  Bg7 {[%clk 0:02:48]} 5. Be2 {[%clk 0:03:01]}  c5 {[%clk 0:02:48]} 6. O-O {[%clk 0:03:02]}  d6 {[%clk 0:02:48]} 7. Nc3 {[%clk 0:03:02]}  e6 {[%clk 0:02:48]} 8. Qe1 {[%clk 0:03:03]}  Nc6 {[%clk 0:02:47]} 9. Qg3 {[%clk 0:03:00]}  Nge7 {[%clk 0:02:45]} 10. Be3 {[%clk 0:02:52]}  Nd4 {[%clk 0:02:40]} 11. Bd1 {[%clk 0:02:52]}  Qd7 {[%clk 0:02:15]} 12. Qh4 {[%clk 0:02:51]}  h6 {[%clk 0:02:03]} 13. Rb1 {[%clk 0:02:43]}  Rc8 {[%clk 0:02:00]} 14. Ne2 {[%clk 0:02:42]}  Nxf3+ {[%clk 0:01:34]} 15. Rxf3 {[%clk 0:02:36]}  f5 {[%clk 0:01:34]} 16. Ng3 {[%clk 0:02:25]}  O-O {[%clk 0:01:31]} 17. c3 {[%clk 0:02:24]}  c4 {[%clk 0:01:20]} 18. Rf1 {[%clk 0:02:21]}  cxd3 {[%clk 0:01:20]} 19. Bb3 {[%clk 0:02:17]}  fxe4 {[%clk 0:01:17]} 20. f5 {[%clk 0:02:09]}  Nxf5 {[%clk 0:01:16]} 21. Nxf5 {[%clk 0:02:08]}  Rxf5 {[%clk 0:01:12]} 22. Rxf5 {[%clk 0:02:05]}  gxf5 {[%clk 0:01:12]} 23. Bxh6 {[%clk 0:02:05]}  d5 {[%clk 0:01:09]} 24. Qg3 {[%clk 0:01:53]}  Qf7 {[%clk 0:01:07]} 25. Rf1 {[%clk 0:01:49]}  Qf6 {[%clk 0:01:02]} 26. Bg5 {[%clk 0:01:49]}  Qg6 {[%clk 0:01:00]} 27. h4 {[%clk 0:01:49]}  Kh7 {[%clk 0:00:52]} 28. Bd1 {[%clk 0:01:48]}  e5 {[%clk 0:00:51]} 29. h5 {[%clk 0:01:45]}  Qe6 {[%clk 0:00:51]} 30. h6 {[%clk 0:01:44]}  Bh8 {[%clk 0:00:48]} 31. Bh5 {[%clk 0:01:43]}  Rg8 {[%clk 0:00:47]} 32. Qh4 {[%clk 0:01:43]}  d4 {[%clk 0:00:42]} 33. Kh1 {[%clk 0:01:40]}  e3 {[%clk 0:00:42]} 34. Kh2 {[%clk 0:01:36]}  e2 {[%clk 0:00:41]} 35. Re1 {[%clk 0:01:34]}  d2 {[%clk 0:00:31]} 36. Bxd2 {[%clk 0:01:33]}  Rxg2+ {[%clk 0:00:30]} 37. Kh3 {[%clk 0:01:30]}  d3 {[%clk 0:00:21]} 38. Be3 {[%clk 0:01:01]}  Bf6 {[%clk 0:00:20]} 39. Bg6+ {[%clk 0:00:53]}  Rxg6 {[%clk 0:00:19]} 40. Qh5 {[%clk 0:00:46]}  f4+ {[%clk 0:00:19]} 41. Kh2 {[%clk 0:00:46]}  Rg2+ {[%clk 0:00:17]} 42. Kh1 {[%clk 0:00:42]}  Rg5+ {[%clk 0:00:16]} 43. Kh2 {[%clk 0:00:40]}  Rxh5+ {[%clk 0:00:17]} 44. Kg1 {[%clk 0:00:40]}  Qg4+ {[%clk 0:00:17]} 45. Kf2 {[%clk 0:00:41]}  Bh4# {[%clk 0:00:17]} 0-1


[Site "https://www.chess.com"]

[Event "Titled Tuesday Blitz July 25 Early 2023"]
[White "Ladan, Nicholas"]
[Black "Becerra Rivero, Julio"]
[WhiteFideId "30918855"]
[BlackFideId "3501728"]
[WhiteElo "2467"]
[BlackElo "2876"]
[Result "0-1"]
[Round "1"]
[TimeControl "180+2"]
[Date "2023.07.25"]
[WhiteClock "0:00:01"]
[BlackClock "0:00:17"]
[Board "43"]

1. Nf3 {[%clk 0:02:58]}  Nf6 {[%clk 0:02:59]} 2. d4 {[%clk 0:02:58]}  g6 {[%clk 0:02:59]} 3. c3 {[%clk 0:02:56]}  Bg7 {[%clk 0:02:58]} 4. Bg5 {[%clk 0:02:55]}  d6 {[%clk 0:02:58]} 5. Nbd2 {[%clk 0:02:52]}  Nbd7 {[%clk 0:02:58]} 6. e4 {[%clk 0:02:50]}  e5 {[%clk 0:02:58]} 7. dxe5 {[%clk 0:02:48]}  dxe5 {[%clk 0:02:53]} 8. Bc4 {[%clk 0:02:47]}  O-O {[%clk 0:02:52]} 9. O-O {[%clk 0:02:44]}  h6 {[%clk 0:02:51]} 10. Bh4 {[%clk 0:02:42]}  Qe7 {[%clk 0:02:50]} 11. a4 {[%clk 0:02:33]}  a5 {[%clk 0:02:48]} 12. Qc2 {[%clk 0:02:29]}  g5 {[%clk 0:02:39]} 13. Bg3 {[%clk 0:02:27]}  Nh5 {[%clk 0:02:39]} 14. Rfe1 {[%clk 0:02:22]}  Nf4 {[%clk 0:02:26]} 15. Bxf4 {[%clk 0:02:11]}  exf4 {[%clk 0:02:24]} 16. e5 {[%clk 0:02:11]}  Nc5 {[%clk 0:02:24]} 17. Ne4 {[%clk 0:02:02]}  Bf5 {[%clk 0:02:23]} 18. Nf6+ {[%clk 0:01:56]}  Qxf6 {[%clk 0:02:23]} 19. exf6 {[%clk 0:01:56]}  Bxc2 {[%clk 0:02:23]} 20. fxg7 {[%clk 0:01:56]}  Rfe8 {[%clk 0:02:15]} 21. Ne5 {[%clk 0:01:42]}  Kxg7 {[%clk 0:02:11]} 22. Nxf7 {[%clk 0:01:23]}  Bxa4 {[%clk 0:01:40]} 23. b4 {[%clk 0:01:02]}  Bb3 {[%clk 0:01:33]} 24. Ne5 {[%clk 0:00:47]}  axb4 {[%clk 0:01:21]} 25. Rxa8 {[%clk 0:00:42]}  Rxa8 {[%clk 0:01:22]} 26. cxb4 {[%clk 0:00:42]}  Bxc4 {[%clk 0:01:21]} 27. Nxc4 {[%clk 0:00:39]}  Nd3 {[%clk 0:01:21]} 28. Rd1 {[%clk 0:00:31]}  b5 {[%clk 0:01:14]} 29. Nd2 {[%clk 0:00:19]}  Nxb4 {[%clk 0:01:10]} 30. Ne4 {[%clk 0:00:20]}  Nd3 {[%clk 0:01:03]} 31. h4 {[%clk 0:00:18]}  Ra3 {[%clk 0:01:01]} 32. hxg5 {[%clk 0:00:17]}  hxg5 {[%clk 0:01:02]} 33. Nxg5 {[%clk 0:00:18]}  Kf6 {[%clk 0:01:00]} 34. Ne4+ {[%clk 0:00:15]}  Kf5 {[%clk 0:01:00]} 35. f3 {[%clk 0:00:15]}  b4 {[%clk 0:00:55]} 36. Kf1 {[%clk 0:00:11]}  Ne5 {[%clk 0:00:29]} 37. Rc1 {[%clk 0:00:08]}  c6 {[%clk 0:00:25]} 38. Nd6+ {[%clk 0:00:04]}  Ke6 {[%clk 0:00:25]} 39. Nc4 {[%clk 0:00:04]}  Rc3 {[%clk 0:00:21]} 40. Rxc3 {[%clk 0:00:04]}  bxc3 {[%clk 0:00:22]} 41. Na3 {[%clk 0:00:01]}  Kd5 {[%clk 0:00:20]} 42. Ke2 {[%clk 0:00:01]}  Kd4 {[%clk 0:00:20]} 43. Nc2+ {[%clk 0:00:02]}  Kc4 {[%clk 0:00:20]} 44. g4 {[%clk 0:00:02]}  fxg3 {[%clk 0:00:20]} 45. f4 {[%clk 0:00:02]}  Nf7 {[%clk 0:00:18]} 46. Kf3 {[%clk 0:00:02]}  c5 {[%clk 0:00:16]} 47. Kxg3 {[%clk 0:00:02]}  Kd3 {[%clk 0:00:16]} 48. Na3 {[%clk 0:00:02]}  c2 {[%clk 0:00:16]} 49. Nxc2 {[%clk 0:00:01]}  Kxc2 {[%clk 0:00:17]} 0-1


[Site "https://www.chess.com"]